Cogmind - Beta 10.1 @@@ ROGUE MODE // 2020.09.30 @ 20:30:38 Player: Calanor Result: Smashed by cave-in Performance ------------- Evolutions (0) 0 Regions Visited (4) 800 Robots Destroyed (53) 265 Value Destroyed (1025) 1025 Prototype IDs (3) 60 Alien Tech Used (0) 0 Bonus (106) 106 TOTAL SCORE: 2256 Bonus ------- Follower Combat Kills 126 Friendly Fire -20 Cogmind --------- Core Integrity 0/250 Matter 131/300 Energy 100/100 System Corruption 3% Temperature Cool (286) Movement Treading (160) Location -9/Mines Parts ------- > --- POWER (1) -------- (None) > --- PROPULSION (2) --- Light Treads Light Treads > --- UTILITY (2) ------ Large Storage Unit Experimental Sensor Array > --- WEAPON (2) ------- Improved Light Cannon Improved Light Cannon > --- INVENTORY (10) --- Ion Engine Light Treads Coolant Injector Makeshift Cloaking Device Light Armor Plating Improved Trap Extractor EM Pulse Gun Particle Cannon Proton Missile Launcher Rocket Launcher Peak State ------------ > --- POWER ------------ Makeshift Power Source > --- PROPULSION ------- Light Treads Light Treads > --- UTILITY ---------- Large Storage Unit Experimental Sensor Array > --- WEAPON ----------- Improved Light Cannon Improved Light Cannon > --- INVENTORY -------- Ion Engine Light Treads Disposable Heat Sink Makeshift Cloaking Device Light Armor Plating Improved Trap Extractor EM Pulse Gun Particle Cannon Particle Cannon Rocket Launcher [Rating: 19] Favorites ----------- Power Ion Engine Engine Ion Engine Propulsion Light Treads Treads Light Treads Utility Large Storage Unit Device Experimental Sensor Array Storage Large Storage Unit Protection Light Armor Plating Weapon Improved Light Cannon Energy Gun EM Pulse Gun Ballistic Gun Light Assault Rifle Ballistic Cannon Improved Light Cannon Special Weapon Mining Laser Build | -11 -10 -10 -10 -9 ------- Run | Scr Mat Min Exi Min Slots Evolved . | . . . . . Power . | . . . . . Propulsion . | . . . . . Utility . | . . . . . Weapon . | . . . . . Parts Attached 34 | 6 13 6 4 5 Power 6 | 1 4 . 1 . Engine 6 | 1 4 . 1 . Core . | . . . . . Reactor . | . . . . . Propulsion 8 | 2 1 2 2 1 Treads 8 | 2 1 2 2 1 Leg . | . . . . . Wheel . | . . . . . Hover . | . . . . . Flight . | . . . . . Utility 9 | 1 3 1 1 3 Device 4 | . 1 . . 3 Storage 3 | 1 1 . 1 . Processor . | . . . . . Hackware . | . . . . . Protection 2 | . 1 1 . . Artifact . | . . . . . Weapon 11 | 2 5 3 . 1 Energy Gun 2 | 1 1 . . . Energy Cannon . | . . . . . Ballistic Gun 2 | 1 1 . . . Ballistic Cannon 6 | . 3 2 . 1 Launcher . | . . . . . Special Weapon 1 | . . 1 . . Impact Weapon . | . . . . . Slashing Weapon . | . . . . . Piercing Weapon . | . . . . . Special Melee Weapon . | . . . . . Unidentified Prototypes 1 | . . . . 1 Parts Lost 2 | . 1 . . 1 Power 1 | . . . . 1 Propulsion . | . . . . . Utility . | . . . . . Weapon 1 | . 1 . . . Highest Loss Streak 1 | . 1 . . 1 Average Slot Usage (%) 99 | . 99 100 100 100 Engine 14 | . 14 14 14 14 Treads 28 | . 28 28 28 28 Device 1 | . 1 . . 7 Storage 14 | . 14 14 14 14 Protection 11 | . 12 14 14 6 Energy Gun 2 | . 8 . . . Ballistic Cannon 25 | . 17 27 28 28 Naked Turns . | . . . . . Heaviest Build 32 | 12 32 32 32 31 Greatest Support 40 | 40 40 40 40 40 Greatest Overweight (x) . | . . . . . Average Overweight (x) . | . . . . . Largest Inventory Capacity 10 | 6 10 10 10 10 Average Capacity 9 | 4 8 10 10 10 Most Carried 10 | 4 10 10 10 10 Average Carried 9 | 2 7 9 9 9 Final Capacity 10 | 6 10 10 10 10 Final Carried 10 | 4 10 10 10 10 Class Distribution -------------------- 100% | Mutant Dominant Class ---------------- Mutant | -10/Materials Mutant | -10/Mines Mutant | -10/Exiles Mutant | -9/Mines Resources | -11 -10 -10 -10 -9 ----------- Run | Scr Mat Min Exi Min Matter Collected 1366 | 128 590 124 40 484 Remotely . | . . . . . Salvage Created 1346 | . 919 68 . 359 Parts 82 | . 57 4 . 21 Haulers Intercepted 2 | . 2 . . . Recyclers Shooed 1 | . . . . 1 Parts Field Recycled . | . . . . . Retrieved Matter . | . . . . . Parts Self-Destructed . | . . . . . Prevented . | . . . . . Kills | -11 -10 -10 -10 -9 ------- Run | Scr Mat Min Exi Min Combat Hostiles Destroyed 39 | . 21 3 . 15 Guns 7 | . 7 . . . Cannons 30 | . 12 3 . 15 AOE 2 | . 2 . . . Classes Destroyed 9 | . 6 . . 3 Worker 1 | . . . . 1 Tunneler 1 | . . . . 1 Hauler 2 | . 2 . . . Recycler 5 | . 3 . . 2 Operator 2 | . 2 . . . Watcher 3 | . 3 . . . Swarmer 18 | . 9 2 . 7 Grunt 20 | . 12 1 . 7 Assembled 1 | . . . . 1 Best Kill Streak 8 | . 3 2 . 8 Combat Bots Only 5 | . 3 2 . 5 Max Kills in Single Turn 2 | . 2 1 . 2 Gunslinging . | . . . . . Exploded 2 | . 2 . . . Melee . | . . . . . Uniques/NPCs Destroyed . | . . . . . Combat | -11 -10 -10 -10 -9 -------- Run | Scr Mat Min Exi Min Damage Taken 1517 | . 666 129 . 722 Core 293 | . 105 6 . 182 Absorbed by Shields . | . . . . . Core Remaining (%) 100 | 100 . . . . Volleys Fired 160 | . 70 12 7 71 Largest 2 | . 2 2 2 2 Hottest 100 | . 85 100 78 78 Shots Fired 309 | . 137 20 14 138 Gun 57 | . 57 . . . Cannon 248 | . 80 16 14 138 Launcher . | . . . . . Special 4 | . . 4 . . Kinetic 261 | . 93 16 14 138 Thermal 16 | . 12 4 . . Explosive . | . . . . . Electromagnetic 32 | . 32 . . . Robot Hit Streak 9 | . 9 9 . 4 Robot Miss Streak 4 | . 4 2 . 4 Penetration Max . | . . . . . Secondary Targets 1 | . 1 . . . Max Gunslinging Chain 1 | . 1 . . . Shots Hit Robots 124 | . 77 9 . 38 Core Hits 58 | . 34 4 . 20 Critical Hits 5 | . 3 . . 2 Critical Kills 4 | . 2 . . 2 Critical Parts Destroyed 1 | . 1 . . . Melee Attacks . | . . . . . Impact . | . . . . . Slashing . | . . . . . Piercing . | . . . . . Sneak Attacks . | . . . . . Combat Hostiles . | . . . . . Follow-up Attacks . | . . . . . Damage Inflicted 2256 | . 1173 193 20 870 Guns 363 | . 363 . . . Cannons 1812 | . 729 193 20 870 Explosions 81 | . 81 . . . Melee . | . . . . . Ramming . | . . . . . Kinetic 1831 | . 748 193 20 870 Thermal 141 | . 141 . . . Explosive . | . . . . . Electromagnetic 284 | . 284 . . . Impact . | . . . . . Slashing . | . . . . . Piercing . | . . . . . Highest Corruption 1 | . . . . 1 Average Corruption 1 | . . . . 1 Corruption Purged . | . . . . . Effects 2 | . . . . 2 Message Errors 1 | . . . . 1 Targeting Errors 1 | . . . . 1 Overload Shots . | . . . . . Overflow Damage 33 | . . . . 33 Projectiles 33 | . . . . 33 Explosions . | . . . . . Melee . | . . . . . Knockbacks 14 | . 5 . 1 8 Impact . | . . . . . Kinetic 14 | . 5 . 1 8 Secondary . | . . . . . Self-Inflicted Damage 33 | . 33 . . . Shots 1 | . 1 . . . Rammed . | . . . . . Targets Rammed . | . . . . . Kicked . | . . . . . Crushed . | . . . . . Highest Temperature 362 | . 297 128 165 362 Average Temperature 89 | . 69 46 65 118 Received Heat Transfer 309 | . 162 27 . 120 Effects 4 | . 1 . . 3 Energy Bleed 1 | . 1 . . . Interference 2 | . . . . 2 Damage (minor) 1 | . . . . 1 Siege Activations . | . . . . . Robots Corrupted . | . . . . . Combat Hostiles . | . . . . . Parts Fried 1 | . 1 . . . Impact Corruptions . | . . . . . Robots Melted . | . . . . . Combat Hostiles . | . . . . . Parts Melted . | . . . . . Heat Transferred 285 | . 285 . . . Parts Sabotaged . | . . . . . Parts Stolen . | . . . . . Parts Stripped . | . . . . . Power Chain Reactions 1 | . 1 . . . Missiles Intercepted . | . . . . . Alert | -11 -10 -10 -10 -9 ------- Run | Scr Mat Min Exi Min Peak Influence 222 | . 222 195 . 155 Initial 76 | . . 76 . . Average 76 | . 100 63 . 61 Maximum Alert Level 1 | . 1 . . . Low Security (%) 96 | 100 91 100 . 100 Level 1 3 | . 8 . . . Level 2 . | . . . . . Level 3 . | . . . . . Level 4 . | . . . . . Level 5 . | . . . . . High Security . | . . . . . Max Security . | . . . . . Squads Dispatched 5 | . 5 . . . Investigation 2 | . 2 . . . Extermination . | . . . . . Reinforcement 3 | . 3 . . . Assault . | . . . . . Garrison . | . . . . . Intercept . | . . . . . Construction Impeded . | . . . . . Haulers Reinforced . | . . . . . Stealth | -11 -10 -10 -10 -9 --------- Run | Scr Mat Min Exi Min Distress Signals . | . . . . . Communications Jammed . | . . . . . Distress Signals . | . . . . . Times Spotted 67 | . 36 12 . 19 Peak Tracking Total 4 | . 4 3 . 4 Tactical Retreats 7 | . 4 1 . 2 Traps | -11 -10 -10 -10 -9 ------- Run | Scr Mat Min Exi Min Traps Triggered 3 | . 1 . . 2 Indirectly . | . . . . . Trap Hack Attempts . | . . . . . Triggered . | . . . . . Disarmed . | . . . . . Reprogrammed . | . . . . . Reused . | . . . . . Traps Extracted . | . . . . . Installed . | . . . . . Triggered . | . . . . . Machines | -11 -10 -10 -10 -9 ---------- Run | Scr Mat Min Exi Min Machines Disabled 3 | . 2 1 . . Max in Single Turn 1 | . 1 1 . . Machines Sabotaged . | . . . . . Garrisons Compromised . | . . . . . Overloaded Fab Kills . | . . . . . Fab Network Shutdowns . | . . . . . Hacking | -11 -10 -10 -10 -9 --------- Run | Scr Mat Min Exi Min Machines Accessed 12 | . 7 . 4 1 Terminals 5 | . 5 . . . Fabricators . | . . . . . Repair Stations . | . . . . . Recycling Units 2 | . 2 . . . Scanalyzers . | . . . . . Garrison Access . | . . . . . Total Hacks 69 | . 19 . 49 1 Successful 59 | . 9 . 49 1 Failed 10 | . 10 . . . Catastrophic 4 | . 4 . . . Database Lockouts . | . . . . . Manual 3 | . 3 . . . Terminals 16 | . 16 . . . Fabricators . | . . . . . Repair Stations . | . . . . . Recycling Units 3 | . 3 . . . Scanalyzers . | . . . . . Garrison Access . | . . . . . Terminal Hacks 56 | . 6 . 49 1 Record 49 | . . . 49 . Prototype ID Bank 1 | . 1 . . . Open Door 1 | . . . . 1 Emergency Access Points 1 | . 1 . . . Alert Level 1 | . 1 . . . Unreport Threat 2 | . 2 . . . Zone Layout 1 | . 1 . . . Fabricator Hacks . | . . . . . Repair Station Hacks . | . . . . . Recycling Unit Hacks 3 | . 3 . . . Report Inventory 2 | . 2 . . . Retrieve Components 1 | . 1 . . . Scanalyzer . | . . . . . Garrison Access Hacks . | . . . . . Unauthorized Hacks . | . . . . . Terminals . | . . . . . Fabricators . | . . . . . Repair Stations . | . . . . . Recycling Units . | . . . . . Scanalyzers . | . . . . . Garrison Access . | . . . . . Data Cores Recovered . | . . . . . Used . | . . . . . Hacking Detections 4 | . 4 . . . Full Trace Events 1 | . 1 . . . Feedback Events . | . . . . . Feedback Blocked . | . . . . . Robot Schematics Acquired . | . . . . . Robots Built . | . . . . . Matter . | . . . . . Time . | . . . . . Total Robot Build Rating . | . . . . . Part Schematics Acquired . | . . . . . Parts Built . | . . . . . Matter . | . . . . . Time . | . . . . . Total Part Build Rating . | . . . . . Parts Repaired . | . . . . . Time . | . . . . . Parts Recycled . | . . . . . Recycled Matter . | . . . . . Retrieved Matter . | . . . . . Retrieved Components 3 | . 3 . . . Parts Scanalyzed . | . . . . . Part Schematics Acquired . | . . . . . Parts Damaged . | . . . . . Bothacking | -11 -10 -10 -10 -9 ------------ Run | Scr Mat Min Exi Min Used RIF Installer . | . . . . . Robots Hacked . | . . . . . Non-combat . | . . . . . Combat . | . . . . . Robot Hacks Applied . | . . . . . Relay Couplers Released . | . . . . . Robots Rewired 2 | . . . 2 . Allies Hacked . | . . . . . Hacks Repelled . | . . . . . Allies | -11 -10 -10 -10 -9 -------- Run | Scr Mat Min Exi Min Total Allies 6 | . . 4 2 . Largest Group 4 | . . 4 3 3 Highest-Rated Group 71 | . . 71 37 37 Highest-Rated Ally 31 | . . 31 21 21 Total Orders . | . . . . . Ally Attacks 50 | . . 29 . 21 Total Damage 546 | . . 319 . 227 Kills 8 | . . 7 . 1 Allies Corrupted . | . . . . . Allies Melted . | . . . . . Intel | -11 -10 -10 -10 -9 ------- Run | Scr Mat Min Exi Min Robot Analysis Total . | . . . . . Derelict Logs Recovered 2 | . . 1 . 1 Drone Launches . | . . . . . Drone Recoveries . | . . . . . Exploration | -11 -10 -10 -10 -9 ------------- Run | Scr Mat Min Exi Min Turns Passed 7182 | 90 1963 1453 2270 1406 Spaces Moved 4047 | 51 1061 862 1391 682 Core 4 | 4 . . . . Treads 4043 | 47 1061 862 1391 682 Legs . | . . . . . Wheels . | . . . . . Hover . | . . . . . Flight . | . . . . . Fastest Speed 50 | 50 160 160 160 160 Average Speed 159 | 151 160 160 160 160 Slowest Speed 160 | 160 160 160 160 160 Overloaded Moves . | . . . . . Propulsion Burnouts . | . . . . . Robots Hopped . | . . . . . Cave-ins Triggered 1 | . . . . 1 Exploration Rate (%) 74 | 4 98 99 95 75 Regions Visited 4 Branch Regions 3 Pre-discovered Areas 1 | . . . 1 . Known Exits Taken . | . . . . . Unknown Exits Taken 4 | 1 1 1 1 . Scrap Searched 4 | . . 3 . 1 Spaces Dug 12 | . . 4 2 6 Terrain Destroyed 23 | . 6 4 2 11 Melee . | . . . . . Projectile 19 | . 2 4 2 11 AOE 4 | . 4 . . . Terrain Rammed . | . . . . . Walls Destroyed . | . . . . . Machines Disabled . | . . . . . Actions | -11 -10 -10 -10 -9 --------- Run | Scr Mat Min Exi Min Total 4450 | 61 1198 908 1424 859 Wait 139 | . 22 22 4 91 Move 4043 | 50 1060 861 1390 682 Hop . | . . . . . Pick Up 28 | 5 14 2 2 5 Fast Attach 9 | 5 4 . . . Attach 2 | 1 1 . . . Detach 3 | . 3 . . . Swap 23 | . 8 6 4 5 Drop 32 | . 16 5 6 5 Fire 160 | . 70 12 7 71 Melee . | . . . . . Ram . | . . . . . Kick . | . . . . . Crush . | . . . . . Escape Stasis . | . . . . . Rewire 11 | . . . 11 . Trap . | . . . . . Miscellaneous . | . . . . . Route ------- -11/Scrapyard -10/Materials (discovered 5 exits: [*Mat x3] / [*Min x2]) -10/Mines (discovered 3 exits: [*Mat x2] / *Exi) -10/Exiles (discovered 2 exits: *Min x2) -9/Mines History --------- Turn | Location | Event 3 | -11/Scrapyard | Discovered new exit (range 15) 91 | -11/Scrapyard | Entered Materials 153 | -10/Materials | Discovered new exit (range 16) 312 | -10/Materials | Build established: Mutant 820 | -10/Materials | Discovered new exit (range 11) 1262 | -10/Materials | Discovered new exit (range 14) 1370 | -10/Materials | Discovered new exit (range 5) 1722 | -10/Materials | Discovered new exit (range 11) 2054 | -10/Materials | Entered Mines 2061 | -10/Mines | Assisted by bots powering up and referring to "LRC-V3" 2184 | -10/Mines | Learned Materials security intel 2383 | -10/Mines | Deemed a non-threat by the Exiles lab entrance 2385 | -10/Mines | Discovered new exit (range 5) 2788 | -10/Mines | Received a Mining Laser from a helpful Derelict 2988 | -10/Mines | Discovered new exit (range 8) 3181 | -10/Mines | Discovered new exit (range 10) 3507 | -10/Mines | Entered Exiles 3507 | -10/Exiles | Found Exiles lab destroyed 3507 | -10/Exiles | Accompanied by 1 ally 3533 | -10/Exiles | Discovered new exit (range 15) 4047 | -10/Exiles | Learned location of Zion (-6) 4147 | -10/Exiles | Discovered new exit (range 14) 5777 | -10/Exiles | Entered Mines 5777 | -9/Mines | Accompanied by 3 allies 6073 | -9/Mines | Core integrity fell below 50% 6112 | -9/Mines | Received a Rocket Launcher from a helpful Derelict 6223 | -9/Mines | Excavation squad dispatched 6223 | -9/Mines | A large section of the Mines collapsed 6416 | -9/Mines | Found a damaged Exp. Sensor Array with a note attached 6420 | -9/Mines | Found Prototype Device 6421 | -9/Mines | Identified Exp. Sensor Array 6473 | -9/Mines | Excavation squad dispatched 6723 | -9/Mines | Excavation squad dispatched 6879 | -9/Mines | Met a Derelict who couldn't figure out how to use a Trap Extractor 6973 | -9/Mines | Excavation squad dispatched 7184 | -9/Mines | Crushed by falling debris 7184 | -9/Mines | Smashed by cave-in Last Messages --------------- 06987_ K-01 Serf collects debris. 06988_ U-05 Engineer lays Concrete. 06991_ K-01 Serf collects debris. 06991_ U-05 Engineer lays Concrete. 06997_ U-05 Engineer builds a Wall. 07002_ U-05 Engineer lays Concrete. 07006_ U-05 Engineer builds a Wall. 07006_ U-05 Engineer lays Concrete. 07012_ U-05 Engineer builds a Wall. 07081_ G-34 Mercenary destroyed. 07100_ Acquired 26 matter. 07174_ Overheating: System interference. 07174_ Exp. Sensor Array temporarily disabled. 07175_ Overheating: System interference. 07175_ Imp. Light Cannon temporarily disabled. 07176_ System corrupted: Imp. Light Cannon targeting data glitched. 07184_ The unstable cave ceiling collapses. 07184_ Crushed by falling debris. 07184_ Mak. Power Source destroyed. 07184_ System corrupted by crushing effect (+2). Map ----- +----------------------------------------------------+ | ???????????????????????????######?????????????? | | ?????????????????????????### ##???########## | | ????????????????????????## #???# ! | | ????????????????????????# #???# [ | | ????????????????????????# ##???# ####### | | ????????????????????????# #????# #?????# | | ????????????????????????# #????# #?????? | | ?????????????#####??????# ##???# ####??? | | ????????????## ##?????# ##??# ##?? | | ????????????# #?????# #### #?? | | ???????????## ##????# ## ##?? | | ??????????## ###### ##??? | | ??????????# ##???? | | ?????????## """ ### = ##????? | | ????????## """ ##### ##?##### ##?????? | | ???????## """ #??## ###??????# ####???? | | ??????## #?## ##????????# ==%#???? | | ??????# #### ##?????????####=#???? | | ??????# ### ###?# #?????????????#[#?### | | ?????## ##?# #??## ##?????????????#%### | | ????## ##??# #### #??????????????#% | | ???## ##???# ##??????????????# ## | | ???# ##????# ##???????????????#%### | | ??## ###?????#### #????????????????# #### | | ?## ##??????????## ##???????########## ##?## | | ?# #????????????###@#???????# *##??? | | ?# #??????????????# #??????# ######## #???# | | ?## ##?????????????# #??????# #??????# #?### | | ??# #?????????????######????# ######## ### | | ??# #?????????????## ######! ## ## | | ??## ##?????????????# %* = = * | | ???####?????????????# ## == == = | | ????????????????????????## ##### = | | ?????????????????????????## #??## | | ??????????????????????????#### ##???## | | ?????????????????????????????## ##?????# | | ?????????????????????????????## ##??????# | | ????????????????????????????## ##??###### | | ???????????????????????????## ######## | | ??????????????????????????## ##??## | | ??????????????????????????# ##???# | | ??????????????????????????# #????# | | ??????????????????????????## ##????# ## # | | ???????????????????????????####?????# ####### | | ????????????????????????????????????# ##????? | | ????????????????????????????????????## #????? | | ?????????????????????????????????????## ##???? | | ??????????????????????????????????????## ##### | | ???????????????????????????????????????# | | ???????????????????????????????????????# | +----------------------------------------------------+ Best States ------------- Heat Dissipation 25 Energy Generation 15 Energy Capacity 250 Matter Stores 300 Matter Capacity 300 Sight Range 16 Robot Scan Range 30 Terrain Scan Density 10 Armor Coverage 150 Evasion (%) 40 Recoil Reduction 2 Item Schematics ----------------- None Robot Schematics ------------------ None Fabricated ------------ Nothing Alien Tech Used ----------------- None Achievements -------------- A New Friend Challenges ------------ None Game ------ Seed BurstVortexReconfigurator Manual? 0 Play Time 00:59:22 Cumulative 43.7 hours Start 2020.09.30 @ 17:56:12 End 2020.09.30 @ 20:30:38 Sessions 3 Manual Loads 0 Difficulty Rogue Special Mode None Game No. 39 Rogue 39 Adventurer 0 Explorer 0 Win Type - Total 0 Types 0/0/0/0/0/0/0/0/0 Lore% 22 Gallery% 21 Achievement% 19 Wizard Run 0 Options --------- ASCII 0 Keyboard 0 Movement Numpad Keybinds 0 Fullscreen 1 Font 24/Terminus Map View 76x50 Tactical HUD 1 Map Filters NONE Filters NONE Steam 1 RUN: c28e8a16-bb20-4082-9d92-2ef78c7c34cc